fUSD/lending_fUSD_20250929
["ID","MTS","AMOUNT","RATE_DAILY","PERIOD"]
[388361019,1759122645863,-19626.70159845,0.00018493,2]
[388361021,1759122645873,-437.45742864,0.00018493,2]
[388361023,1759122645882,-533.75263957,0.00018499,2]
[388361025,1759122645892,-3441.13246042,0.000185,2]
[388361027,1759122645901,-300.0,0.00018502,2]
[388361029,1759122645911,-437.45742864,0.00018503,2]
[388361031,1759122645920,-82670.496027,0.00018505,2]
[388361033,1759122645929,-300.54,0.00018506,2]
[388361035,1759122645938,-7116.91057428,0.00018509,2]
[388361037,1759122645948,-7116.91057428,0.0001851,2]
[388361039,1759122645958,-533.75263957,0.0001851,2]
[388361041,1759122645968,-1727.94416158,0.00018518,2]
[388361043,1759122645977,-9213.66157083,0.00018518,2]
[388361045,1759122645987,-7116.91057428,0.00018522,2]
[388361047,1759122645996,-3441.13246042,0.00018525,2]
[388361049,1759122646007,-3441.13246042,0.00018525,2]
[388361051,1759122646016,-533.75263957,0.00018526,2]
[388361053,1759122646026,-7116.91057428,0.00018529,2]
[388361055,1759122646035,-19626.70159845,0.00018535,2]
[388361057,1759122646044,-1056.05388778,0.00018546,2]
[388361059,1759122646053,-533.75263957,0.00018549,2]
[388361061,1759122646063,-82670.496027,0.0001855,2]
[388361063,1759122646072,-9213.66157083,0.00018552,2]
[388361065,1759122646082,-1727.94416158,0.00018553,2]
[388361067,1759122646091,-9213.66157083,0.00018553,2]
[388361070,1759122646101,-82670.496027,0.00018555,2]
[388361073,1759122646110,-3441.13246042,0.00018557,2]
[388361075,1759122646120,-82670.496027,0.00018558,2]
[388361078,1759122646129,-19626.70159845,0.00018562,2]
[388361080,1759122646139,-9213.66157083,0.00018563,2]
[388361082,1759122646148,-19626.70159845,0.00018564,2]
[388361084,1759122646158,-7116.91057428,0.00018565,2]
[388361086,1759122646168,-7116.91057428,0.00018574,2]
[388361087,1759122646177,-437.45742864,0.00018576,2]
[388361090,1759122646187,-3625.5786,0.00018579,2]
[388361091,1759122646197,-3441.13246042,0.00018583,2]
[388361094,1759122646207,-3441.13246042,0.00018583,2]
[388361096,1759122646217,-437.45742864,0.00018584,2]
[388361098,1759122646226,-1727.94416158,0.00018587,2]
[388361100,1759122646236,-82670.496027,0.00018588,2]
[388361102,1759122646245,-1727.94416158,0.00018593,2]
[388361104,1759122646255,-533.75263957,0.00018595,2]
[388361106,1759122646264,-533.75263957,0.00018595,2]
[388361108,1759122646273,-1727.94416158,0.00018595,2]
[388361110,1759122646282,-9213.66157083,0.00018596,2]
[388361112,1759122646291,-533.75263957,0.00018598,2]
[388361114,1759122646300,-4113.0,0.00018631,2]
[388361116,1759122646309,-728.0,0.00018631,2]
[388361118,1759122646319,-16905.0,0.00018631,2]
[388361120,1759122646328,-300.0,0.00018639,2]
[388361122,1759122646337,-322.6107,0.00018668,2]
[388361124,1759122646346,-151.0,0.00018668,2]
[388361126,1759122646355,-200.0,0.00018668,2]
[388361128,1759122646364,-200.0,0.00018668,2]
[388361130,1759122646373,-200.0,0.00018668,2]
[388361132,1759122646382,-200.0,0.00018668,2]
[388361134,1759122646391,-200.0,0.00018668,2]
[388361136,1759122646400,-200.0,0.00018668,2]
[388361138,1759122646409,-500.0,0.00018668,2]
[388361140,1759122646418,-200.0,0.00018668,2]
[388361142,1759122646428,-500.0,0.00018668,2]
[388361144,1759122646436,-556.65833547,0.00018668,2]
[388361146,1759122646446,-200.0,0.00018668,2]
[388361148,1759122646455,-229.24644817,0.00018668,2]
[388361150,1759122646465,-500.0,0.00018668,2]
[388361152,1759122646478,-500.0,0.00018668,2]
[388361154,1759122646488,-500.0,0.00018668,2]
[388361156,1759122646497,-500.0,0.00018668,2]
[388361158,1759122646507,-700.0,0.0001868,2]
[388361160,1759122646517,-250.0,0.00018682,2]
[388361162,1759122646526,-782.99332842,0.00018738,2]
[388361164,1759122646535,-1000.0,0.000188,2]
[388361166,1759122646545,-1000.0,0.000188,2]
[388361168,1759122646555,-1000.0,0.00018815,2]
[388361170,1759122646564,-787.0,0.00018816,2]
[388361172,1759122646573,-3398.0,0.00018816,2]
[388361174,1759122646582,-1264.0,0.00018816,2]
[388361176,1759122646591,-2044.0,0.00018816,2]
[388361179,1759122646600,-411.61980375,0.000189,2]
[388361181,1759122646610,-1000.0,0.000189,2]
[388361182,1759122646618,-1000.0,0.000189,2]
[388361184,1759122646628,-1008.0,0.000189,2]
[388361187,1759122646637,-1000.0,0.000189,3]
[388361188,1759122646646,-1000.0,0.000189,3]
[388361191,1759122646656,-1000.0,0.000189,2]
[388361193,1759122646666,-1000.0,0.000189,2]
[388361195,1759122646676,-313.0,0.000189,3]
[388361197,1759122646685,-1000.0,0.000189,2]
[388361199,1759122646694,-1000.0,0.000189,2]
[388361201,1759122646704,-708.0,0.000189,2]
[388361203,1759122646713,-157.39097189,0.000189,2]
[388361205,1759122646723,-340.59,0.00018922,2]
[388361207,1759122646732,-153.0,0.00018948,2]
[388361209,1759122646742,-3750.46936631,0.00018951,2]
[388361211,1759122646751,-500.0,0.00018964,2]
[388361212,1759122646761,-332.92715178,0.00018964,2]
[388361215,1759122646770,-180644.26,0.00018965,2]
[388361217,1759122646780,-300.0,0.00018982,2]
[388361219,1759122646790,-150.92,0.0001899,2]
[388361221,1759122646799,-174.35773542,0.0001899,2]
[388361223,1759122646809,-1000.0,0.00018994,2]
[388361225,1759122646819,-299.16058588,0.00018999,2]
[388361227,1759122646828,-1030.0,0.00019,2]
[388361229,1759122646838,-1116381.01821553,0.00019,2]
[388361231,1759122646849,-158.74633,0.00019,2]
[388361233,1759122646859,-151.0,0.00019,2]
[388361235,1759122646869,-158.74633,0.00019,2]
[388361237,1759122646878,-158.74633,0.00019,2]
[388361239,1759122646888,-151.0,0.00019,2]
[388361241,1759122646898,-158.74633,0.00019,2]
[388361243,1759122646908,-151.0,0.00019,2]
[388361245,1759122646918,-151.0,0.00019,2]
[388361247,1759122646927,-151.0,0.00019,2]
[388361248,1759122646937,-151.0,0.00019,2]
[388361249,1759122646947,-151.0,0.00019,2]
[388361250,1759122646956,-151.0,0.00019,2]
[388361251,1759122646966,-151.0,0.00019,2]
[388361252,1759122646975,-244.327985,0.00019,2]
[388361253,1759122646985,-204.156098,0.00019,2]
[388361254,1759122646994,-204.156098,0.00019,2]
[388361255,1759122647004,-204.156098,0.00019,2]
[388361256,1759122647014,-151.0,0.00019,2]
[388361257,1759122647024,-204.156098,0.00019,2]
[388361258,1759122647035,-151.0,0.00019,2]
[388361259,1759122647044,-231.762855,0.00019,2]
[388361260,1759122647054,-231.762855,0.00019,2]
[388361261,1759122647063,-231.762855,0.00019,2]
[388361262,1759122647072,-231.762855,0.00019,2]
[388361263,1759122647082,-160.0,0.00019,2]
[388361264,1759122647092,-160.0,0.00019,2]
[388361265,1759122647101,-160.0,0.00019,2]
[388361266,1759122647110,-160.0,0.00019,2]
[388361267,1759122647119,-160.0,0.00019,2]
[388361268,1759122647129,-160.0,0.00019,2]
[388361269,1759122647139,-160.0,0.00019,2]
[388361270,1759122647149,-160.0,0.00019,2]
[388361271,1759122647158,-160.0,0.00019,2]
[388361272,1759122647168,-160.0,0.00019,2]
[388361273,1759122647178,-160.0,0.00019,2]
[388361274,1759122647187,-160.0,0.00019,2]
[388361275,1759122647197,-160.0,0.00019,2]
[388361276,1759122647208,-160.0,0.00019,2]
[388361277,1759122647217,-160.0,0.00019,2]
[388361278,1759122647227,-160.0,0.00019,2]
[388361280,1759122647237,-160.0,0.00019,2]
[388361282,1759122647247,-160.0,0.00019,2]
[388361284,1759122647264,-160.0,0.00019,2]
[388361286,1759122647273,-160.0,0.00019,2]
[388361288,1759122647282,-160.0,0.00019,2]
[388361289,1759122647292,-160.0,0.00019,2]
[388361290,1759122647302,-160.0,0.00019,2]
[388361291,1759122647311,-160.0,0.00019,2]
[388361292,1759122647321,-160.0,0.00019,2]
[388361293,1759122647331,-160.0,0.00019,2]
[388361294,1759122647341,-160.0,0.00019,2]
[388361295,1759122647351,-160.0,0.00019,2]
[388361296,1759122647361,-160.0,0.00019,2]
[388361297,1759122647371,-160.0,0.00019,2]
[388361298,1759122647380,-160.0,0.00019,2]
[388361299,1759122647390,-160.0,0.00019,2]
[388361300,1759122647399,-160.0,0.00019,2]
[388361301,1759122647409,-160.0,0.00019,2]
[388361302,1759122647419,-160.0,0.00019,2]
[388361303,1759122647430,-160.0,0.00019,2]
[388361304,1759122647439,-160.0,0.00019,2]
[388361305,1759122647449,-160.0,0.00019,2]
[388361306,1759122647459,-160.0,0.00019,2]
[388361307,1759122647469,-160.0,0.00019,2]
[388361308,1759122647484,-160.0,0.00019,2]
[388361309,1759122647494,-160.0,0.00019,2]
[388361310,1759122647503,-160.0,0.00019,2]
[388361311,1759122647513,-160.0,0.00019,2]
[388361312,1759122647523,-160.0,0.00019,2]
[388361313,1759122647532,-160.0,0.00019,2]
[388361314,1759122647542,-160.0,0.00019,2]
[388361315,1759122647553,-160.0,0.00019,2]
[388361316,1759122647563,-160.0,0.00019,2]
[388361317,1759122647573,-160.0,0.00019,2]
[388361318,1759122647583,-160.0,0.00019,2]
[388361319,1759122647592,-160.0,0.00019,2]
[388361320,1759122647601,-160.0,0.00019,2]
[388361321,1759122647611,-160.0,0.00019,2]
[388361322,1759122647621,-160.0,0.00019,2]
[388361323,1759122647630,-160.0,0.00019,2]
[388361324,1759122647640,-160.0,0.00019,2]
[388361325,1759122647649,-160.0,0.00019,2]
[388361326,1759122647659,-160.0,0.00019,2]
[388361327,1759122647669,-160.0,0.00019,2]
[388361328,1759122647678,-160.0,0.00019,2]
[388361329,1759122647688,-160.0,0.00019,2]
[388361330,1759122647698,-160.0,0.00019,2]
[388361331,1759122647707,-160.0,0.00019,2]
[388361332,1759122647716,-160.0,0.00019,2]
[388361333,1759122647726,-160.0,0.00019,2]
[388361334,1759122647736,-160.0,0.00019,2]
[388361335,1759122647745,-160.0,0.00019,2]
[388361336,1759122647755,-160.0,0.00019,2]
[388361337,1759122647764,-160.0,0.00019,2]
[388361338,1759122647774,-160.0,0.00019,2]
[388361339,1759122647784,-160.0,0.00019,2]
[388361340,1759122647794,-160.0,0.00019,2]
[388361341,1759122647803,-160.0,0.00019,2]
[388361342,1759122647813,-160.0,0.00019,2]
[388361343,1759122647822,-160.0,0.00019,2]
[388361344,1759122647832,-160.0,0.00019,2]
[388361345,1759122647841,-160.0,0.00019,2]
[388361346,1759122647851,-160.0,0.00019,2]
[388361347,1759122647861,-160.0,0.00019,2]
[388361348,1759122647870,-160.0,0.00019,2]
[388361349,1759122647881,-160.0,0.00019,2]
[388361350,1759122647890,-160.0,0.00019,2]
[388361351,1759122647900,-160.0,0.00019,2]
[388361352,1759122647909,-160.0,0.00019,2]
[388361353,1759122647919,-160.0,0.00019,2]
[388361354,1759122647929,-160.0,0.00019,2]
[388361355,1759122647938,-160.0,0.00019,2]
[388361356,1759122647948,-160.0,0.00019,2]
[388361357,1759122647957,-160.0,0.00019,2]
[388361358,1759122647967,-160.0,0.00019,2]
[388361359,1759122647978,-160.0,0.00019,2]
[388361360,1759122647988,-160.0,0.00019,2]
[388361361,1759122647998,-160.0,0.00019,2]
[388361362,1759122648008,-160.0,0.00019,2]
[388361363,1759122648018,-160.0,0.00019,2]
[388361364,1759122648027,-160.0,0.00019,2]
[388361365,1759122648037,-160.0,0.00019,2]
[388361366,1759122648046,-160.0,0.00019,2]
[388361367,1759122648056,-160.0,0.00019,2]
[388361368,1759122648066,-151.0,0.00019,2]
[388361369,1759122648075,-309.18246589,0.00019,2]
[388361370,1759122648085,-806.74,0.00019041,2]
[388361371,1759122648094,-477.2,0.00019041,2]
[388361372,1759122648103,-157.39097183,0.00019043,2]
[388361373,1759122648112,-411.61980374,0.00019067,2]
[388361374,1759122648121,-1000.0,0.00019099,2]
[388361375,1759122648131,-1000.0,0.00019099,2]
[388361376,1759122648140,-1351.0,0.00019103,2]
[388361377,1759122648149,-782.99332842,0.00019126,2]
[388361378,1759122648158,-542.52880922,0.00019154,2]
[388361379,1759122648168,-2436.468,0.00019169,2]
[388361380,1759122648177,-171.3,0.00019169,2]
[388361381,1759122648186,-150.0,0.00019176,2]
[388361382,1759122648195,-1000.0,0.00019178,2]
[388361383,1759122648204,-151.0,0.00019178,2]
[388361384,1759122648213,-206.82156242,0.00019178,2]
[388361385,1759122648223,-5000.0,0.00019178,2]
[388361386,1759122648232,-151.4,0.00019178,2]
[388361387,1759122648242,-150.78,0.00019178,2]
[388361388,1759122648252,-412.02,0.00019178,2]
[388361389,1759122648262,-937.83,0.00019178,2]
[388361390,1759122648272,-171.0,0.00019178,2]
[388361391,1759122648282,-334.42,0.00019178,2]
[388361392,1759122648291,-238.0,0.0001918,2]
[388361393,1759122648302,-157.39097183,0.00019186,2]
[388361394,1759122648311,-411.61980374,0.00019233,2]
[388361395,1759122648321,-1351.0,0.00019249,2]
[388361397,1759122648330,-1000.0,0.00019315,2]
[388361399,1759122648339,-157.39097183,0.00019329,2]
[388361401,1759122648349,-1351.0,0.00019353,2]
[388361403,1759122648359,-411.61980374,0.000194,2]
[388361405,1759122648368,-1351.0,0.00019405,2]
[388361407,1759122648377,-1351.0,0.00019424,2]
[388361409,1759122648387,-782.99332843,0.00019424,2]
[388361411,1759122648396,-1035.8345278,0.00019452,2]
[388361413,1759122648406,-151.0,0.0001946,2]
[388361414,1759122648415,-151.0,0.0001946,2]
[388361415,1759122648425,-151.0,0.0001946,2]
[388361416,1759122648435,-151.0,0.0001946,2]
[388361417,1759122648444,-151.0,0.0001946,2]
[388361418,1759122648453,-151.0,0.0001946,2]
[388361419,1759122648463,-153.406847,0.0001946,2]
[388361420,1759122648474,-151.0,0.0001946,2]
[388361421,1759122648486,-151.0,0.0001946,2]
[388361422,1759122648495,-151.0,0.0001946,2]
[388361423,1759122648504,-151.0,0.0001946,2]
[388361424,1759122648513,-151.0,0.0001946,2]
[388361425,1759122648523,-151.0,0.0001946,2]
[388361426,1759122648533,-151.0,0.0001946,2]
[388361427,1759122648543,-151.0,0.0001946,2]
[388361428,1759122648553,-151.0,0.0001946,2]
[388361429,1759122648562,-151.0,0.0001946,2]
[388361430,1759122648571,-151.0,0.0001946,2]
[388361431,1759122648580,-171.79,0.00019463,2]
[388361432,1759122648590,-157.39097183,0.00019471,2]
[388361433,1759122648600,-151.0,0.00019481,2]
[388361434,1759122648609,-151.0,0.000195,2]
[388361435,1759122648619,-151.0,0.000195,2]
[388361436,1759122648628,-165.041395,0.000195,2]
[388361437,1759122648637,-151.0,0.000195,2]
[388361438,1759122648647,-151.0,0.000195,2]
[388361439,1759122648657,-151.0,0.000195,2]
[388361440,1759122648667,-151.0,0.000195,2]
[388361441,1759122648677,-151.0,0.000195,2]
[388361442,1759122648686,-151.0,0.000195,2]
[388361443,1759122648696,-151.0,0.000195,2]
[388361444,1759122648705,-151.0,0.000195,2]
[388361445,1759122648714,-151.0,0.000195,2]
[388361446,1759122648723,-151.0,0.000195,2]
[388361447,1759122648732,-151.0,0.000195,2]
[388361448,1759122648742,-151.0,0.000195,2]
[388361449,1759122648751,-153.222768,0.000195,2]
[388361450,1759122648761,-272.16,0.000195,2]
[388361451,1759122648770,-159.37736,0.000195,2]
[388361452,1759122648780,-1351.0,0.0001955,2]
[388361453,1759122648789,-411.61980374,0.00019567,2]
[388361454,1759122648799,-1351.0,0.0001957,2]
[388361455,1759122648808,-151.0,0.0001957,2]
[388361456,1759122648818,-618.930777,0.0001957,2]
[388361457,1759122648828,-618.930777,0.0001957,2]
[388361458,1759122648837,-618.930777,0.0001957,2]
[388361459,1759122648847,-618.930777,0.0001957,2]
[388361460,1759122648857,-151.0,0.0001957,2]
[388361461,1759122648867,-151.0,0.0001957,2]
[388361462,1759122648876,-183.501408,0.0001957,2]
[388361463,1759122648887,-151.0,0.0001957,2]
[388361464,1759122648896,-183.501408,0.0001957,2]
[388361465,1759122648906,-183.501408,0.0001957,2]
[388361466,1759122648915,-151.0,0.0001957,2]
[388361467,1759122648925,-151.0,0.0001957,2]
[388361468,1759122648934,-183.501408,0.0001957,2]
[388361469,1759122648943,-155.465883,0.0001957,2]
[388361470,1759122648952,-151.0,0.0001957,2]
[388361471,1759122648962,-151.0,0.0001957,2]
[388361472,1759122648971,-151.0,0.0001957,2]
[388361473,1759122648980,-151.0,0.0001957,2]
[388361474,1759122648990,-151.0,0.0001957,2]
[388361475,1759122648999,-380.567849,0.0001957,2]
[388361476,1759122649008,-151.0,0.0001957,2]
[388361477,1759122649017,-380.567849,0.0001957,2]
[388361478,1759122649027,-151.0,0.0001957,2]
[388361479,1759122649036,-151.0,0.0001957,2]
[388361480,1759122649046,-380.567849,0.0001957,2]
[388361481,1759122649055,-380.567849,0.0001957,2]
[388361482,1759122649065,-151.0,0.0001957,2]
[388361483,1759122649074,-151.0,0.0001957,2]
[388361484,1759122649083,-151.0,0.0001957,2]
[388361485,1759122649094,-151.0,0.0001957,2]
[388361486,1759122649103,-151.0,0.0001957,2]
[388361487,1759122649407,-720.0,0.00019571,2]
[388361488,1759122649417,-151.0,0.00019575,2]
[388361489,1759122649426,-151.0,0.00019575,2]
[388361490,1759122649435,-160.596481,0.00019575,2]
[388361491,1759122649444,-152.784923,0.00019575,2]
[388361492,1759122649454,-151.0,0.00019575,2]
[388361493,1759122649464,-151.0,0.00019575,2]
[388361494,1759122649477,-151.0,0.00019575,2]
[388361495,1759122649491,-151.0,0.00019575,2]
[388361496,1759122649501,-151.0,0.00019575,2]
[388361497,1759122649511,-151.0,0.00019575,2]
[388361498,1759122649521,-151.0,0.00019575,2]
[388361499,1759122649531,-311.594525,0.00019575,2]
[388361500,1759122649541,-311.594525,0.00019575,2]
[388361501,1759122649552,-336.031665,0.00019575,2]
[388361502,1759122649563,-311.594525,0.00019575,2]
[388361503,1759122649573,-336.031665,0.00019575,2]
[388361504,1759122649582,-311.594525,0.00019575,2]
[388361505,1759122649592,-336.031665,0.00019575,2]
[388361506,1759122649602,-336.031665,0.00019575,2]
[388361507,1759122649611,-151.0,0.00019591,2]
[388361508,1759122649620,-90348.0,0.000196,2]
[388361509,1759122649629,-159.37736,0.000196,2]
[388361510,1759122649638,-180.0,0.000196,2]
[388361511,1759122649647,-157.39097183,0.00019614,2]
[388361512,1759122649656,-157.54493997,0.00019626,2]
[388361513,1759122649665,-8671.783173,0.00019643,2]
[388361514,1759122649674,-3114.767541,0.00019643,2]
[388361515,1759122649683,-232219.5841349,0.00019643,2]
[388361516,1759122649693,-151.0,0.00019643,2]
[388361517,1759122649702,-151.0,0.00019643,2]
[388361518,1759122649711,-197.516661,0.00019643,2]
[388361519,1759122649720,-151.0,0.00019643,2]
[388361520,1759122649730,-151.0,0.00019643,2]
[388361521,1759122649739,-151.0,0.00019643,2]
[388361522,1759122649749,-151.0,0.00019643,2]
[388361523,1759122649759,-151.0,0.00019643,2]
[388361524,1759122649768,-151.0,0.00019643,2]
[388361525,1759122649777,-151.0,0.00019643,2]
[388361526,1759122649787,-151.0,0.00019643,2]
[388361527,1759122649797,-151.0,0.00019643,2]
[388361528,1759122649808,-280.265557,0.00019643,2]
[388361529,1759122649818,-151.0,0.00019643,2]
[388361530,1759122649828,-151.0,0.00019643,2]
[388361531,1759122649840,-294.270602,0.00019643,2]
[388361532,1759122649850,-151.0,0.00019643,2]
[388361533,1759122649860,-151.0,0.00019643,2]
[388361534,1759122649870,-151.0,0.00019643,2]
[388361535,1759122649879,-151.0,0.00019643,2]
[388361536,1759122649889,-121604.9108507,0.00019643,2]
[388361537,1759122649899,-151.0,0.00019643,2]
[388361538,1759122649910,-152.753286,0.00019643,2]
[388361539,1759122649919,-151.0,0.00019643,2]
[388361540,1759122649928,-151.0,0.00019643,2]
[388361541,1759122649938,-151.0,0.00019643,2]
[388361542,1759122649947,-151.26529,0.00019643,2]
[388361543,1759122649957,-3114.767541,0.00019643,2]
[388361544,1759122649967,-151.0,0.00019643,2]
[388361545,1759122649976,-151.0,0.00019643,2]
[388361546,1759122649986,-151.0,0.00019643,2]
[388361547,1759122649996,-311.594525,0.00019643,2]
[388361548,1759122650005,-311.594525,0.00019643,2]
[388361549,1759122650014,-336.031665,0.00019643,2]
[388361550,1759122650023,-311.594525,0.00019643,2]
[388361551,1759122650032,-336.031665,0.00019643,2]
[388361552,1759122650041,-311.594525,0.00019643,2]
[388361553,1759122650050,-336.031665,0.00019643,2]
[388361554,1759122650059,-336.031665,0.00019643,2]
[388361555,1759122650069,-151.0,0.00019643,2]
[388361556,1759122650078,-151.0,0.00019643,2]
[388361557,1759122650087,-151.0,0.00019643,2]
[388361558,1759122650097,-151.0,0.00019643,2]
[388361559,1759122650106,-151.0,0.00019643,2]
[388361560,1759122650116,-151.0,0.00019643,2]
[388361561,1759122650125,-151.0,0.00019643,2]
[388361562,1759122650134,-151.0,0.00019643,2]
[388361563,1759122650143,-151.0,0.00019643,2]
[388361564,1759122650153,-151.0,0.00019643,2]
[388361565,1759122650163,-151.0,0.00019643,2]
[388361566,1759122650172,-151.0,0.00019643,2]
[388361567,1759122650182,-151.0,0.00019643,2]
[388361568,1759122650192,-151.0,0.00019643,2]
[388361569,1759122650201,-151.0,0.00019643,2]
[388361570,1759122650211,-151.0,0.00019643,2]
[388361571,1759122650221,-151.0,0.00019643,2]
[388361572,1759122650231,-151.0,0.00019643,2]
[388361573,1759122650241,-151.0,0.00019643,2]
[388361574,1759122650251,-151.0,0.00019643,2]
[388361575,1759122650260,-297.215949,0.00019643,2]
[388361576,1759122650269,-151.0,0.00019643,2]
[388361577,1759122650278,-297.215949,0.00019643,2]
[388361578,1759122650288,-297.215949,0.00019643,2]
[388361579,1759122650298,-158.714935,0.00019643,2]
[388361580,1759122650307,-297.215949,0.00019643,2]
[388361581,1759122650317,-151.0,0.00019643,2]
[388361582,1759122650326,-151.0,0.00019643,2]
[388361583,1759122650335,-151.0,0.00019643,2]
[388361584,1759122650346,-151.0,0.00019643,2]
[388361585,1759122650356,-151.0,0.00019643,2]
[388361586,1759122650366,-151.0,0.00019643,2]
[388361587,1759122650376,-151.0,0.00019643,2]
[388361588,1759122650385,-151.0,0.00019643,2]
[388361589,1759122650395,-151.0,0.00019643,2]
[388361590,1759122650404,-151.0,0.00019643,2]
[388361591,1759122650414,-151.0,0.00019643,2]
[388361592,1759122650423,-151.0,0.00019643,2]
[388361593,1759122650432,-151.0,0.00019643,2]
[388361594,1759122650442,-151.0,0.00019643,2]
[388361595,1759122650452,-151.0,0.00019643,2]
[388361596,1759122650461,-151.0,0.00019643,2]
[388361597,1759122650471,-151.723525,0.00019643,2]
[388361598,1759122650484,-151.0,0.00019643,2]
[388361599,1759122650493,-151.0,0.00019643,2]
[388361600,1759122650502,-151.0,0.00019643,2]
[388361601,1759122650511,-258.52948,0.00019643,2]
[388361602,1759122650520,-151.0,0.00019643,2]
[388361603,1759122650529,-151.0,0.00019643,2]
[388361604,1759122650538,-151.0,0.00019643,2]
[388361605,1759122650547,-618.930777,0.00019643,2]
[388361606,1759122650556,-618.930777,0.00019643,2]
[388361607,1759122650565,-618.930777,0.00019643,2]
[388361608,1759122650574,-618.930777,0.00019643,2]
[388361609,1759122650582,-151.0,0.00019643,2]
[388361610,1759122650591,-151.0,0.00019643,2]
[388361611,1759122650601,-183.501408,0.00019643,2]
[388361612,1759122650611,-151.0,0.00019643,2]
[388361613,1759122650621,-183.501408,0.00019643,2]
[388361614,1759122650630,-183.501408,0.00019643,2]
[388361615,1759122650640,-183.501408,0.00019643,2]
[388361616,1759122650650,-162.839995,0.00019643,2]
[388361617,1759122650659,-151.0,0.00019643,2]
[388361618,1759122650669,-151.0,0.00019643,2]
[388361619,1759122650678,-151.0,0.00019643,2]
[388361620,1759122650687,-380.567849,0.00019643,2]
[388361621,1759122650696,-151.0,0.00019643,2]
[388361622,1759122650705,-380.567849,0.00019643,2]
[388361623,1759122650714,-210.017553,0.00019643,2]
[388361624,1759122650724,-151.0,0.00019643,2]
[388361625,1759122650734,-380.567849,0.00019643,2]
[388361626,1759122650743,-380.567849,0.00019643,2]
[388361627,1759122650753,-151.0,0.00019643,2]
[388361628,1759122650762,-153.724886,0.00019643,2]
[388361629,1759122650772,-235.873989,0.00019643,2]
[388361630,1759122650781,-151.0,0.00019643,2]
[388361631,1759122650790,-151.0,0.00019643,2]
[388361632,1759122650799,-151.0,0.00019643,2]
[388361633,1759122650809,-151.0,0.00019643,2]
[388361634,1759122650818,-151.0,0.00019643,2]
[388361635,1759122650827,-151.0,0.00019643,2]
[388361636,1759122650837,-152.309546,0.00019643,2]
[388361637,1759122650846,-151.0,0.00019643,2]
[388361638,1759122650855,-151.0,0.00019643,2]
[388361639,1759122650865,-151.0,0.00019643,2]
[388361640,1759122650874,-151.0,0.00019643,2]
[388361641,1759122650884,-151.0,0.00019643,2]
[388361642,1759122650893,-151.0,0.00019643,2]
[388361643,1759122650903,-151.0,0.00019643,2]
[388361644,1759122650913,-151.0,0.00019643,2]
[388361645,1759122650923,-151.0,0.00019643,2]
[388361646,1759122650932,-151.0,0.00019643,2]
[388361647,1759122650942,-151.0,0.00019643,2]
[388361648,1759122650951,-151.0,0.00019643,2]